{"text_format":"3","workbook":"xlsx","n_sheets":2,"sheets":["COVER SHEET","2. TRANSACTION FEE OFFSITE "],"not_rendered":{"images":2,"defined_names":25},"read":"whole","date_system":"1900"}

{"sheet":"COVER SHEET","index":0,"n_rows":45,"n_cols":10,"rows_kept":45,"merged":[[1,9,1,11],[13,0,13,12],[16,4,16,11],[18,4,18,11],[20,4,20,11],[23,0,23,12],[25,0,25,12],[26,0,26,12],[27,0,27,12],[28,0,28,12],[29,0,29,12],[30,0,30,12],[31,0,31,12],[32,0,32,12],[33,0,33,12],[34,0,34,12],[35,0,35,12],[36,0,36,12],[37,0,37,12],[38,0,38,12],[39,0,39,12],[40,0,40,12],[41,0,41,12],[42,0,42,12],[43,0,43,12],[44,0,44,12],[45,0,45,12],[46,0,46,12]]}
[]
[{"$nulls":9},"ANNEXURE A3"]
[]
[]
[]
[]
[]
[{"$nulls":5},"DEPARTMENT"]
[{"$nulls":5}," OF"]
[{"$nulls":5},"ECONOMIC DEVELOPMENT, ENVIRONMENT & TOURISM"]
[]
[]
[]
["PRICING SUBMISSION"]
[]
[]
["RFP NO:",{"$nulls":3},"EDET299/2024"]
[]
["RFP NAME:",{"$nulls":3},"THE PROVISION OF TRAVEL MANAGEMENT SERVICES FOR A PERIOD OF 36 MONTHS"]
[]
["BIDDER NAME",{"$nulls":3},"<NAME OF BIDDER TO BE FILLED IN HERE>"]
[]
[]
["PRICE INSTRUCTIONS"]
[]
["1.  STRUCTURE OF THE TENDER"]
["This spreadsheet for RFP/BID EDET299/2024 contains the financial response templates for the bid. The bid pricing submission instructions in this document must be read in conjunction with instructions or notes embedded in the various tabs of spreadsheet (Pricing Schedule)."]
[]
["2.  GENERAL INSTRUCTIONS FOR COMPLETING THE PRICING SCHEDULE TEMPLATES"]
["2.1  Tender submission format"]
["2.1.1 Bidders must submit  a paper copy and an electronic copy of the Pricing Schedule. In the event of a discrepancy, the\n         paper copy will prevail."]
["2.1.2 Bidders must sign all paper copies of their Pricing Schedule."]
["2.1.3 Bidders must complete and submit the templates attached ,which is  transactional fee model offsite\n        "]
["2.1.4 Bidders must reference RFP/BID main document section 15.2 for current travel volumes."]
["2.2  Input spreadsheets"]
["2.2.1 The Pricing Schedule templates are contained within the one (1) Excel Workbook"]
["2.2.2 Bidders must not  make any changes to the spreadsheets or change the formatting of the Pricing Schedule."]
["2.2.3 Cells are formatted to automatically indicate South African Rands, ordinary text fields and percentages (%) where \n         applicable."]
["2.2.4 Input cells FOR BIDDERS are highlighted in  GREEN. The Bidder must complete all the relevant input cells for the bid. \n        No other cells must be changed in any way whatsoever."]
["2.2.4 Input cells FOR THE TENDERING INSTITUTION are highlighted in  ORANGE. The Tendering Institution must complete all  the relevant input cells for the bid. No other cells must be changed in any way whatsoever."]
[]
[]
["2.3  Currency and VAT"]
["2.3.1 All Bidders’ pricing must be quoted in South African Rands (ZAR)."]
["2.3.3 The Pricing Schedule template is designed such that VAT will be calculated on Bidders’ input pricing; therefore Bidders \n         must complete the templates with unit prices excluding VAT."]

{"sheet":"2. TRANSACTION FEE OFFSITE ","index":1,"n_rows":55,"n_cols":6,"rows_kept":55,"merged":[[0,2,2,5],[3,2,3,5],[11,2,11,4],[12,2,12,4],[13,2,13,4],[16,0,16,2],[16,3,16,5],[50,0,50,2],[50,3,50,5],[52,0,52,1],[53,3,53,5],[54,3,54,5]]}
[null,null,"                                 TRANSACTION FEE MODEL"]
[]
[]
[null,null,"                        OFF-SITE SERVICES"]
[]
[null,"DEPARTMENT"]
[null," OF"]
[null,"   ECONOMIC DEVELOPMENT, ENVIRONMENT & TOURISM"]
[]
[]
[]
["RFP NO:",null,"EDET299/2024"]
["RFP NAME:",null,{"$f":"'COVER SHEET'!$E19","v":"THE PROVISION OF TRAVEL MANAGEMENT SERVICES FOR A PERIOD OF 36 MONTHS"}]
["BIDDER NAME",null,{"$f":"'COVER SHEET'!$E21","v":"<NAME OF BIDDER TO BE FILLED IN HERE>"}]
[]
["1.1  TRANSACTION FEES"]
[{"$nulls":3},"TRADITIONAL BOOKINGS"]
["ITEM","Transaction Type","Estimated Volume","Unit Price\n(excl VAT)","Unit Price\n(incl VAT)","TOTAL Price\n(incl VAT)"]
[1,"Air Travel – International",1,0,{"$f":"D19*1.15","v":0},{"$f":"E19*C19","v":0}]
[2,"Air Travel – Regional",1,0,{"$f":"D20*1.14","v":0},0]
[3,"Air Travel – Domestic ",1,0,0,0]
[4,"Air Travel – International (Re-issue)",1,0,0,0]
[5,"Air Travel – Regional (Re-issue)",1,0,0,0]
[6,"Air Travel – Domestic (Re-issue)",1,0,0,0]
[7,"Refunds – Air Domestic",1,0,0,0]
[8,"Refunds – Air Regional",1,0,0,0]
[9,"Refunds – Air International",1,0,0,0]
[10,"Car Rental – Domestic",1,0,0,0]
[11,"Car Rental – Regional ",1,0,0,0]
[12,"Car Rental – International",1,0,0,0]
[13,"Transfers/Shuttle – Domestic",1,0,0,0]
[14,"Transfers/Shuttle – Regional",1,0,0,0]
[15,"Transfers/Shuttle – International",1,0,0,0]
[16,"Accommodation – Domestic",1,0,0,0]
[17,"Accommodation – Regional",1,0,0,0]
[18,"Accommodation – International",1,0,0,0]
[19,"Bus/Coach Bookings",1,0,0,0]
[20,"Train bookings – International",1,0,0,0]
[21,"Visa Assistance \n(Provision of documents and advice)",1,0,0,0]
[22,"Courier services for travel documentation (visa & passports)",1,0,0,0]
[23,"SMS Notifications",1,0,0,0]
[24,"Parking bookings",1,0,0,0]
[25,"Cancellations",1,0,0,0]
[26,"Changes to bookings",1,0,0,0]
[27,"After Hours Services",1,0,0,0]
[28,"Additional Ad-hoc Reports (per report)",1,0,0,0]
[29,"Customised Reports (per report)",1,0,0,0]
[30,"Travel Lodge card Reconciliation",1,0,0,0]
[31,"Debtors Account Reconciliation",1,0,0,0]
[null,"Total",null,0,0,{"$f":"SUM(F19:F49)","v":0}]
["TOTAL PRICE  WILL BE USED FOR EVALUATION PURPOSES"]
[]
["1.2  CONFERENCE TRANSACTION FEE"]
["Item","Description","Percentage Fee"]
[1,"Conference Transaction Fee (as a % of the Total turnover of the event)"]